{"text_format":"3","workbook":"xlsx","n_sheets":1,"sheets":["Sheet1"],"read":"whole","date_system":"1900"}

{"sheet":"Sheet1","index":0,"n_rows":17,"n_cols":22,"rows_kept":17,"merged":[[0,0,0,1],[1,0,1,21],[2,0,3,0],[2,1,3,1],[2,2,3,2],[2,3,3,3],[2,4,3,4],[2,5,3,5],[2,6,2,16],[2,17,3,17],[2,18,3,18],[2,19,3,19],[2,20,3,20],[2,21,3,21],[4,0,4,1],[4,2,16,2],[4,3,16,3],[4,4,16,4],[4,17,16,17],[4,18,16,18],[4,19,16,19],[4,20,16,20],[4,21,16,21]]}
["附件1"]
["2021年顿谷镇初级中学等12所学校补充招聘教师计划表"]
["序号","招聘单位","主管部门","单位性质","招聘岗位及等级","招聘总人数","招聘岗位",{"$nulls":10},"招聘对象","年龄要求","招聘\n范围","专业要求","备注"]
[{"$nulls":6},"初中政治教师","初中语文教师","初中数学教师","初中物理教师","初中化学教师","初中历史教师","初中地理教师","初中生物教师","初中英语教师","初中音乐教师","初中体育教师"]
["合计",null,"博白县教育局","财政全额拨款事业单位","专业技术十三级",{"$f":"SUM(F6:F17)","v":42},{"$f":"SUM(G6:G17)","v":7},{"$f":"SUM(H6:H17)","v":2},9,4,3,3,3,1,5,3,2,"大专及以上学历的毕业生","35周岁以下（1985年4月24日以后出生）","广西","\n    政治岗位：思想政治教育、政治学与行政学、哲学、国际政治、马克思主义基本原理\n    语文岗位：汉语言文学、中国现当代文学、中国古代文学、对外汉语、广播电视新闻学、文秘教育、汉语言文学教育、汉语、汉语言、中文教育、语文教育、初等教育、综合文科教育\n    数学岗位：数学教育、数学与应用数学、基础数学、科学教育、数理基础科学、应用数学、计算数学及其应用软件、数学、初等教育、综合理科教育\n    物理岗位：物理学、应用电子技术教育、电子信息工程、科学教育、教育技术学、通信工程、机械工程及自动化、核物理、应用物理学，声学，物理学教育，原子核物理学及核技术\n    化学岗位：化学、科学教育、化学教育\n    历史岗位：历史学、历史教育\n    地理岗位：地理科学、人文教育、地理教育\n    生物岗位：生物教育、生物科学、科学教育、生物技术、动物科学、生物工程、生态学、园艺、农学\n    英语岗位：英语教育、应用英语、翻译、商务英语、英语\n    音乐岗位：音乐学、舞蹈表演、音乐表演、舞蹈学、舞蹈教育、舞蹈表演与教育、音乐教育\n    体育岗位：体育教育、运动康复与健康、运动训练、社会体育"]
[1,"顿谷镇初级中学",{"$nulls":3},{"$f":"SUM(G6:Q6)","v":2},1,{"$nulls":7},1]
[2,"径口镇三育初级中学",null,"财政全额拨款事业单位","专业技术十二级",{"$f":"SUM(G7:Q7)","v":2},null,null,1,{"$nulls":4},1]
[3,"永安镇初级中学",null,"全额",null,2,null,null,1,null,null,1]
[4,"旺茂镇第一初级中学",null,"拨款",null,2,1,{"$nulls":9},1]
[5,"凤山镇第二初级中学",null,"事业",null,4,1,null,1,{"$nulls":3},1,null,null,1]
[6,"凤山镇第四初级中学",null,"单位",null,3,null,null,1,1,{"$nulls":4},1]
[7,"文地镇第二初级中学",{"$nulls":3},9,1,null,2,1,null,1,2,null,null,1,1]
[8,"英桥镇第一初级中学",{"$nulls":3},2,1,{"$nulls":7},1]
[9,"英桥镇第二初级中学",{"$nulls":3},2,1,{"$nulls":7},1]
[10,"大垌镇初级中学",{"$nulls":3},5,null,2,1,1,1]
[11,"东平镇塘龙初级中学",{"$nulls":3},6,null,null,2,1,1,{"$nulls":3},1,1]
[12,"龙潭镇第一初级中学",{"$nulls":3},3,1,{"$nulls":3},1,1]